bitfinex-derivatives/quotes_BTCF0:USTF0_20241218
["timestamp","ask_amount","ask_price","bid_price","bid_amount"]
[1734513473527,0.2718777,104210.0,104200.0,0.4172557]
[1734513474534,0.2718777,104210.0,104200.0,0.64588228]
[1734513475022,0.2718777,104210.0,104200.0,0.63741458]
[1734513475436,0.1470889,104210.0,104200.0,0.68381638]
[1734513476517,0.1470889,104210.0,104200.0,0.69227284]
[1734513476918,0.15681454,104210.0,104200.0,0.69227284]
[1734513478527,0.1470889,104210.0,104200.0,0.68381638]
[1734513478717,0.1470889,104210.0,104200.0,0.69226954]
[1734513479320,0.1950759,104210.0,104200.0,0.69226954]
[1734513479518,0.1968659,104210.0,104200.0,0.69226954]
[1734513481134,0.1968659,104210.0,104200.0,0.68381638]
[1734513481323,0.2432677,104210.0,104200.0,0.63741458]
[1734513482019,0.2756677,104210.0,104200.0,0.63741458]
[1734513482225,0.2292659,104210.0,104200.0,0.64586668]
[1734513482427,0.3731281,104210.0,104200.0,0.64586668]
[1734513484742,0.3251411,104210.0,104200.0,0.69226848]
[1734513485044,0.1166789,104210.0,104200.0,1.02355157]
[1734513485328,0.1166789,104210.0,104200.0,0.86088337]
[1734513485633,0.1166789,104210.0,104200.0,0.81448157]
[1734513485962,0.1166789,104210.0,104200.0,0.86088337]
[1734513486831,0.1166789,104210.0,104200.0,0.86087724]
[1734513487539,0.1166789,104210.0,104200.0,2.36087724]
[1734513487720,0.1166789,104210.0,104200.0,2.34937289]
[1734513487921,0.1166789,104210.0,104200.0,2.35780881]
[1734513488831,0.1166789,104210.0,104200.0,2.36624471]
[1734513489032,0.1166789,104210.0,104200.0,2.36929995]
[1734513489934,0.1166789,104210.0,104200.0,2.36086405]
[1734513490939,0.1166789,104210.0,104200.0,2.36929205]
[1734513491129,0.1166789,104210.0,104200.0,2.36930212]
[1734513491338,0.1166789,104210.0,104200.0,2.00850212]
[1734513491523,0.1166789,104210.0,104200.0,2.73010212]
[1734513491928,0.1166789,104210.0,104200.0,2.72167412]
[1734513492230,0.07064012,104210.0,104200.0,2.72167412]
[1734513492939,0.07064012,104210.0,104200.0,2.71860881]
[1734513494237,0.07064012,104210.0,104200.0,2.73010187]
[1734513494637,0.07064012,104210.0,104200.0,2.72166595]
[1734513495335,8.754e-05,104220.0,104210.0,0.047987]
[1734513495634,8.754e-05,104220.0,104210.0,1.12716257]
[1734513496332,8.754e-05,104220.0,104210.0,0.84141642]
[1734513496534,8.754e-05,104220.0,104210.0,1.17333559]
[1734513496834,0.00143967,104240.0,104230.0,0.047978]
[1734513497037,0.00143967,104240.0,104230.0,1.34126189]
[1734513497338,0.01,104250.0,104240.0,0.047973]
[1734513497661,0.01007212,104250.0,104240.0,0.69494608]
[1734513498424,0.01007212,104250.0,104240.0,0.46666786]
[1734513499168,0.01948568,104250.0,104240.0,0.46666786]
[1734513499639,0.01998568,104250.0,104240.0,0.46666786]
[1734513500435,0.01998568,104250.0,104240.0,0.46664021]
[1734513500634,0.05138568,104250.0,104240.0,0.46664021]
[1734513501030,0.04197212,104250.0,104240.0,0.46664021]
[1734513503438,0.04197212,104250.0,104240.0,0.46357419]
[1734513503742,0.04197212,104250.0,104240.0,0.46661456]
[1734513504568,0.04197212,104250.0,104240.0,0.4551748]
[1734513505032,0.04197212,104250.0,104240.0,0.41182332]
[1734513505234,0.04197212,104250.0,104240.0,0.41715993]
[1734513505437,0.12087392,104250.0,104240.0,0.41715993]
[1734513505636,0.16884192,104250.0,104240.0,0.408773]
[1734513505842,0.20064192,104250.0,104240.0,0.36385148]
[1734513506039,0.24704372,104250.0,104240.0,0.00305148]
[1734513506240,0.047973,104240.0,104230.0,0.3608]
[1734513506440,0.047978,104230.0,104220.0,0.40878]
[1734513506639,0.1594798,104230.0,104220.0,0.40878]
[1734513509361,0.1898798,104230.0,104220.0,0.3608]
[1734513509652,0.047982,104220.0,104210.0,0.36223903]
[1734513509952,0.1407856,104220.0,104210.0,0.36223903]
[1734513510336,0.1407856,104220.0,104210.0,0.00143903]
[1734513510548,0.1407856,104220.0,104210.0,0.36223903]
[1734513512344,0.0943838,104220.0,104210.0,0.36223903]
[1734513512652,0.1407856,104220.0,104210.0,0.36223903]
[1734513513647,0.0943838,104220.0,104210.0,0.36223903]
[1734513513854,0.96429363,104230.0,104210.0,0.41022603]
[1734513514049,0.55401123,104230.0,104220.0,0.408782]
[1734513518253,0.55401123,104230.0,104220.0,0.41185453]
[1734513519661,0.55401123,104230.0,104220.0,0.41185516]
[1734513520554,0.50760943,104230.0,104220.0,0.41185516]
[1734513520852,0.55401123,104230.0,104220.0,0.41185516]
[1734513523262,0.15338514,104230.0,104220.0,0.41185516]
[1734513523865,0.16320593,104230.0,104220.0,0.41185516]
[1734513524376,0.1823784,104230.0,104220.0,0.41185516]
[1734513524860,0.00982079,104230.0,104220.0,0.41185516]
[1734513525062,0.59274105,104250.0,104220.0,0.55264076]
[1734513525063,0.15537383,104250.0,104220.0,0.55264076]
[1734513525264,0.05791343,104250.0,104240.0,0.408773]
[1734513525454,0.05791343,104250.0,104240.0,0.41184616]
[1734513525666,0.10638143,104250.0,104240.0,0.41184616]
[1734513525856,0.10638143,104250.0,104240.0,0.41184893]
[1734513526052,0.05997963,104250.0,104240.0,0.41184893]
[1734513526859,0.05947963,104250.0,104240.0,0.41184893]
[1734513527164,0.07909927,104250.0,104240.0,0.41184893]
[1734513527657,0.07959927,104250.0,104240.0,0.41184893]
[1734513527872,0.08943448,104250.0,104240.0,0.41184893]
[1734513528660,0.08893448,104250.0,104240.0,0.41184893]
[1734513528857,0.08893448,104250.0,104240.0,0.41184145]
[1734513529052,0.17490344,104250.0,104240.0,0.41184145]
[1734513529768,0.17540344,104250.0,104240.0,0.41184145]
[1734513530265,0.24609232,104250.0,104240.0,0.36386845]
[1734513530455,0.16012336,104250.0,104240.0,0.36386845]
[1734513531754,0.30398556,104250.0,104240.0,0.3608]
[1734513531957,0.30398556,104250.0,104240.0,0.36386676]
[1734513533863,0.23329668,104250.0,104240.0,0.41183976]
[1734513534059,0.04146648,104250.0,104240.0,0.41183976]
[1734513534265,0.12751154,104250.0,104240.0,0.47553976]
[1734513534661,0.12751154,104250.0,104240.0,1.97553976]
[1734513535367,0.11767633,104250.0,104240.0,1.97553976]
[1734513536058,0.03163127,104250.0,104240.0,0.47553976]
[1734513536464,0.11769344,104250.0,104240.0,0.47553976]
[1734513537860,0.11769344,104250.0,104240.0,0.44303976]
[1734513537861,0.10232015,104250.0,104240.0,0.44303976]
[1734513538061,0.15028815,104250.0,104240.0,0.44303976]
[1734513538396,0.13066851,104250.0,104240.0,0.44303976]
[1734513539156,0.21671312,104250.0,104240.0,0.44303976]
[1734513540465,0.21671312,104250.0,104240.0,0.41183976]
[1734513540776,0.13066851,104250.0,104240.0,0.36386676]
[1734513540969,0.13066851,104250.0,104240.0,0.36385981]
[1734513541174,0.13066851,104250.0,104240.0,0.41183281]
[1734513541560,0.05997963,104250.0,104240.0,0.41183315]
[1734513541764,0.05947963,104250.0,104240.0,0.41183315]
[1734513543563,0.01151163,104250.0,104240.0,0.41183315]
[1734513543886,0.01151163,104250.0,104240.0,0.44223315]
[1734513544279,0.01151163,104250.0,104240.0,1.94223315]
[1734513544470,0.05947963,104250.0,104240.0,1.94224932]
[1734513544653,0.05947963,104250.0,104240.0,0.44224932]
[1734513545456,0.03084215,104250.0,104240.0,0.44224932]
[1734513545662,0.03084215,104250.0,104240.0,0.47424932]
[1734513546266,0.11693548,104250.0,104240.0,0.47424932]
[1734513546568,0.03084215,104250.0,104240.0,0.47424932]
[1734513546764,0.11693985,104250.0,104240.0,0.47424932]
[1734513546966,0.09760933,104250.0,104240.0,0.47424932]
[1734513547464,0.09760933,104250.0,104240.0,0.47425472]
[1734513547665,0.09760933,104250.0,104240.0,0.5449436]
[1734513548063,0.09760933,104250.0,104240.0,0.74891029]
[1734513550566,0.09760933,104250.0,104240.0,0.74890405]
[1734513552064,0.09760933,104250.0,104240.0,0.7952814]
[1734513552266,0.1918272,104260.0,104240.0,0.7952814]
[1734513552267,0.16280065,104260.0,104250.0,0.047968]
[1734513552633,0.16280065,104260.0,104250.0,0.48982083]
[1734513552867,0.16330065,104260.0,104250.0,0.71809905]
[1734513553276,0.1634235,104260.0,104250.0,0.71809905]
[1734513553567,0.1154585,104260.0,104250.0,0.71809905]
[1734513553767,0.00062285,104260.0,104250.0,2.5035374]
[1734513554074,0.55294364,104280.0,104250.0,2.5035374]
[1734513554268,0.55294364,104280.0,104270.0,0.3608]
[1734513554464,0.50656629,104280.0,104270.0,0.41183448]
[1734513554780,0.55294364,104280.0,104270.0,0.41183448]
[1734513554959,0.55305341,104280.0,104270.0,0.41183448]
[1734513555475,0.57178975,104280.0,104270.0,0.41183448]
[1734513556473,0.40916911,104280.0,104270.0,0.41183448]
[1734513556768,0.31483476,104280.0,104270.0,0.41183448]
[1734513556971,0.36121211,104280.0,104270.0,0.41183448]
[1734513557377,0.40916711,104280.0,104270.0,0.41183448]
[1734513557784,0.40916711,104280.0,104270.0,0.42024892]
[1734513558167,0.05878389,104280.0,104270.0,0.42021978]
[1734513558777,0.10516124,104280.0,104270.0,0.42021978]
[1734513559782,0.10566124,104280.0,104270.0,0.41717344]
[1734513560076,0.15361624,104280.0,104270.0,0.41717344]
[1734513561575,0.19999359,104280.0,104270.0,0.36921444]
[1734513561777,0.34385579,104280.0,104270.0,0.36921444]
[1734513564083,0.32176314,104280.0,104270.0,0.36921444]
[1734513565772,0.32176314,104280.0,104270.0,0.3692221]
[1734513567176,0.71115936,104280.0,104270.0,0.0084221]
[1734513567873,0.78182141,104280.0,104270.0,0.0084221]
[1734513568074,0.71115936,104280.0,104270.0,0.0084221]
[1734513568575,0.78182141,104280.0,104270.0,0.0084221]
[1734513568777,0.78182141,104280.0,104270.0,0.0084223]
[1734513568778,1.09622142,104280.0,104270.0,0.0084223]
[1734513568981,0.047964,104260.0,104250.0,0.61164169]
[1734513569284,0.11862605,104260.0,104250.0,0.58004169]
[1734513569881,0.15102605,104260.0,104250.0,0.58004169]
[1734513570089,0.15102605,104260.0,104250.0,0.53207569]
[1734513570287,0.15102605,104260.0,104250.0,0.3608]
[1734513570485,0.2944817,104260.0,104250.0,0.3608]
[1734513571381,0.6552817,104260.0,104240.0,0.40027413]
[1734513571683,0.65410348,104250.0,104240.0,0.0005]
[1734513571996,0.047973,104240.0,104230.0,2.34015013]
[1734513572175,0.047973,104240.0,104230.0,1.75085169]
[1734513572581,0.047973,104240.0,104230.0,2.11165169]
[1734513573289,0.047973,104240.0,104230.0,0.66887444]
[1734513573585,0.047973,104240.0,104230.0,0.30807444]
[1734513573779,0.047973,104240.0,104230.0,0.66887444]
[1734513574782,0.047973,104240.0,104230.0,0.66937444]
[1734513575083,0.047973,104240.0,104230.0,0.30857444]
[1734513575279,0.047973,104240.0,104230.0,0.66937444]
[1734513575783,0.047973,104240.0,104230.0,0.30857444]
[1734513575984,0.047973,104240.0,104230.0,0.25144084]
[1734513576296,0.11863505,104240.0,104230.0,0.17186484]
[1734513576483,0.14923505,104240.0,104230.0,0.0005]
[1734513579885,0.15876433,104240.0,104230.0,0.0005]
[1734513582182,0.07066205,104240.0,104230.0,0.0005]
[1734513582382,0.11863505,104240.0,104230.0,0.0005]
[1734513583101,0.11874128,104240.0,104230.0,0.0005]
[1734513583979,0.15996783,104240.0,104230.0,0.0005]
[1734513584572,0.15996783,104240.0,104220.0,0.404681]
[1734513584835,0.04640341,104230.0,104220.0,0.404681]
[1734513586382,0.11356442,104240.0,104220.0,0.45108441]
[1734513586596,0.06716101,104240.0,104230.0,0.408781]
[1734513586890,0.01918801,104240.0,104230.0,0.45568441]
[1734513587086,0.01918801,104240.0,104230.0,0.62704925]
[1734513587677,0.06716501,104240.0,104230.0,0.69104925]
[1734513587986,0.00010623,104240.0,104230.0,0.51968441]
[1734513588486,0.00010623,104240.0,104230.0,0.69104925]
[1734513589190,0.00010623,104240.0,104230.0,2.19104925]
[1734513590291,0.04650964,104240.0,104230.0,2.14464584]
[1734513590483,0.09448664,104240.0,104230.0,2.14464584]
[1734513590674,0.04808323,104240.0,104230.0,2.14464584]
[1734513590893,0.09448664,104240.0,104230.0,2.14464584]
[1734513591089,0.09448664,104240.0,104230.0,2.15629793]
[1734513591592,0.04808323,104240.0,104230.0,2.38479637]
[1734513591791,0.04808323,104240.0,104230.0,2.15629793]
[1734513592590,0.00010623,104240.0,104230.0,2.43119978]
[1734513592799,0.00010623,104240.0,104230.0,2.38429637]
[1734513593391,0.00010623,104240.0,104230.0,2.43069978]
[1734513596904,0.00010623,104240.0,104230.0,2.38429637]
[1734513597489,0.00010623,104240.0,104230.0,2.21293153]
[1734513597690,0.00010623,104240.0,104230.0,2.65235519]
[1734513597995,0.00010623,104240.0,104230.0,2.65242079]
[1734513598295,0.00010623,104240.0,104230.0,2.65241143]
[1734513599700,0.09448564,104240.0,104230.0,2.42391299]
[1734513600196,0.09448564,104240.0,104230.0,2.65276581]
[1734513600390,0.09448564,104240.0,104230.0,2.4239314]
[1734513602499,0.04808223,104240.0,104230.0,2.65330374]
[1734513602926,0.09448564,104240.0,104230.0,2.65330374]
[1734513603102,0.09448564,104240.0,104230.0,1.15330374]
[1734513603317,0.09448564,104240.0,104230.0,0.70164414]
[1734513603694,0.04808223,104240.0,104230.0,0.70164414]
[1734513603897,0.04808223,104240.0,104230.0,0.98708249]
[1734513604798,0.09448564,104240.0,104230.0,0.98708249]
[1734513605198,0.09448564,104240.0,104230.0,1.14088561]
[1734513605399,0.04808223,104240.0,104230.0,0.98708249]
[1734513606101,0.04808223,104240.0,104230.0,1.14086416]
[1734513606704,0.04808223,104240.0,104230.0,1.18726757]
[1734513607111,0.04808223,104240.0,104230.0,1.0334859]
[1734513607298,0.04808223,104240.0,104230.0,1.18742304]
[1734513608216,0.04808223,104240.0,104230.0,0.9585599]
[1734513609212,0.04808223,104240.0,104230.0,0.91215649]
[1734513609416,0.04808223,104240.0,104230.0,1.14086895]
[1734513609999,0.04808223,104240.0,104230.0,1.14392658]
[1734513610704,0.04808223,104240.0,104230.0,0.91521412]
[1734513612114,0.04808223,104240.0,104230.0,0.91215649]
[1734513612307,0.04808223,104240.0,104230.0,0.91521339]
[1734513613909,0.1630935,104240.0,104230.0,0.91521339]
[1734513614814,0.19012962,104250.0,104230.0,0.91521339]
[1734513615114,0.31844004,104250.0,104240.0,0.40052575]
[1734513615418,0.36484345,104250.0,104240.0,0.40358265]
[1734513615803,0.37677328,104250.0,104240.0,0.40358265]
[1734513616613,0.37677328,104250.0,104240.0,0.23192876]
[1734513616821,0.39498841,104250.0,104240.0,0.23192876]
[1734513617915,0.39498841,104250.0,104240.0,0.40370556]
[1734513617916,0.7046822,104250.0,104240.0,0.40370556]
[1734513618110,0.62772378,104250.0,104240.0,0.1748337]
[1734513618515,0.62772378,104250.0,104240.0,0.0030569]
[1734513618814,0.62722378,104250.0,104240.0,0.0030569]
[1734513619825,0.62772378,104250.0,104240.0,0.0030569]
[1734513620417,0.62772378,104250.0,104230.0,0.40064866]
[1734513620619,0.62772378,104250.0,104230.0,0.40371393]
[1734513620620,0.31334295,104240.0,104230.0,0.40371393]
[1734513621016,0.14078282,104240.0,104230.0,0.40371393]
[1734513621720,0.50158282,104240.0,104230.0,0.40371393]
[1734513621917,0.31334295,104240.0,104230.0,0.40371393]
[1734513622129,0.67414295,104240.0,104230.0,0.40371393]
[1734513622723,0.62773954,104240.0,104230.0,0.40371393]
[1734513623019,0.09437941,104240.0,104230.0,0.40371393]
[1734513623422,0.45517941,104240.0,104230.0,0.40371393]
[1734513623624,0.62773954,104240.0,104230.0,0.40371443]
[1734513623827,0.67414295,104240.0,104230.0,0.40371443]
[1734513624324,0.408776,104240.0,104230.0,0.40371443]
[1734513624525,0.45517941,104240.0,104230.0,0.40371443]
[1734513625229,0.45517941,104240.0,104230.0,0.17484257]
[1734513625428,0.45517941,104240.0,104230.0,0.40371443]
[1734513625963,0.45517941,104240.0,104230.0,0.4037261]
[1734513626423,0.45517941,104240.0,104230.0,0.40064866]
[1734513626424,0.09437941,104240.0,104230.0,0.40064866]
[1734513626930,0.09437941,104240.0,104230.0,0.40372748]
[1734513627121,0.45517941,104240.0,104230.0,0.17485562]
[1734513627321,0.45517941,104240.0,104230.0,0.17485553]
[1734513627822,0.45517941,104240.0,104230.0,0.40372739]
[1734513628027,0.45517941,104240.0,104230.0,0.17485553]
[1734513628525,0.45517941,104240.0,104230.0,0.40372739]
[1734513628930,0.09437941,104240.0,104230.0,0.17485553]
[1734513629336,0.45517941,104240.0,104230.0,0.17485553]
[1734513629724,0.50158282,104240.0,104230.0,0.17485553]
[1734513629926,0.45517941,104240.0,104230.0,0.17485553]
[1734513630118,0.45517941,104240.0,104230.0,0.40372739]
[1734513630323,0.45517941,104240.0,104230.0,0.40064866]
[1734513630525,0.45517941,104240.0,104230.0,0.40371347]
[1734513631533,0.45517941,104240.0,104230.0,0.17484161]
[1734513631830,0.50158282,104240.0,104230.0,0.17484161]
[1734513633529,0.50158282,104240.0,104230.0,0.1748416]
[1734513633839,0.67414295,104240.0,104230.0,0.1748416]
[1734513634259,0.72054636,104240.0,104230.0,0.0030648]
[1734513634627,0.67414295,104240.0,104230.0,0.0030648]
[1734513636626,0.67414295,104240.0,104230.0,0.00306544]
[1734513637928,0.72054636,104240.0,104230.0,0.00306544]
[1734513638144,0.67414295,104240.0,104230.0,0.00306544]
[1734513638646,0.047981,104230.0,104220.0,0.0005]
[1734513638823,0.047981,104230.0,104210.0,0.85644866]
[1734513638824,0.48688441,104230.0,104210.0,0.85644866]
[1734513639034,0.09438941,104220.0,104210.0,0.85644866]
[1734513640635,0.50159282,104220.0,104210.0,0.49564866]
[1734513640832,0.50159282,104220.0,104210.0,0.49545213]
[1734513641643,0.50159282,104220.0,104210.0,0.26658027]
[1734513642039,0.09280682,104220.0,104210.0,0.62738027]
[1734513642234,0.14079282,104220.0,104210.0,0.62738027]
[1734513643734,0.14079282,104220.0,104210.0,0.63043716]
[1734513643735,0.09438941,104220.0,104210.0,0.63043716]
[1734513644327,0.14079282,104220.0,104210.0,0.63043716]
[1734513644643,0.09438941,104220.0,104210.0,0.63043716]
[1734513644838,0.09438941,104220.0,104210.0,0.63093699]
[1734513644839,0.047986,104220.0,104210.0,0.63093699]
[1734513645238,0.047986,104220.0,104210.0,0.85980885]
[1734513645639,0.05938916,104220.0,104210.0,0.85980885]
[1734513645841,0.05938916,104220.0,104210.0,0.85931102]
[1734513646834,0.05938916,104220.0,104210.0,0.85981102]
[1734513647448,0.01140316,104220.0,104210.0,0.78262416]
[1734513647646,0.047983,104230.0,104220.0,0.047986]
[1734513647943,0.09438641,104230.0,104220.0,0.81195491]
[1734513648136,0.09438641,104230.0,104220.0,0.64047919]
[1734513648536,0.09438641,104230.0,104220.0,0.81194944]
[1734513648742,0.09438641,104230.0,104220.0,0.81194947]
[1734513649444,0.09438641,104230.0,104220.0,0.64047919]
[1734513649645,0.10896083,104230.0,104220.0,0.64047919]
[1734513649943,0.10896083,104230.0,104220.0,0.81195797]
[1734513651137,0.06255742,104230.0,104220.0,0.81195797]
[1734513651350,0.047983,104230.0,104220.0,0.81195797]
[1734513651640,0.047983,104230.0,104220.0,0.85836138]
[1734513651943,0.047983,104230.0,104220.0,0.6868826]
[1734513652369,0.047983,104230.0,104220.0,0.68688764]
[1734513654146,0.047983,104230.0,104220.0,0.97232599]
[1734513654842,0.047983,104230.0,104220.0,1.13325607]
[1734513655043,0.047983,104230.0,104220.0,1.13326036]
[1734513655453,0.09438641,104230.0,104220.0,0.92592687]
[1734513655642,0.047983,104230.0,104220.0,0.92592687]
[1734513655842,0.047983,104230.0,104220.0,0.41185422]
[1734513657041,0.047983,104230.0,104220.0,0.45825763]
[1734513657542,0.06573589,104240.0,104230.0,0.047981]
[1734513657741,0.06764264,104250.0,104240.0,0.047976]
[1734513658017,0.06764264,104250.0,104240.0,0.45824763]
[1734513658339,0.0854587,104250.0,104240.0,0.45824811]
[1734513658877,0.0854587,104250.0,104240.0,0.4118447]
[1734513659257,0.22908688,104250.0,104240.0,0.58325939]
[1734513660246,0.0854587,104250.0,104240.0,0.4118447]
[1734513660640,0.00011054,104250.0,104240.0,0.50465152]
[1734513661020,0.00011054,104250.0,104240.0,0.50158282]
[1734513661133,0.01,104270.0,104250.0,0.047972]
[1734513661265,0.00107,104280.0,104270.0,0.047963]
[1734513661538,0.14183482,104280.0,104270.0,0.58002029]
[1734513661786,0.11226358,104290.0,104280.0,0.047958]
[1734513661944,0.11226358,104290.0,104280.0,0.3608]
[1734513661945,0.11235435,104290.0,104280.0,0.3608]
[1734513662253,0.06595094,104290.0,104280.0,0.36388729]
[1734513662467,0.14455435,104290.0,104280.0,0.36388729]
[1734513663010,0.14455435,104290.0,104280.0,0.00308729]
[1734513663156,0.28785463,104290.0,104280.0,0.00308729]
[1734513663341,0.14455435,104290.0,104280.0,0.36388729]
[1734513664158,0.14455435,104290.0,104280.0,0.36390132]
[1734513664953,0.14505435,104290.0,104280.0,0.36390132]
[1734513667471,0.14505435,104290.0,104280.0,0.3608]
[1734513668557,0.14505435,104290.0,104280.0,0.36388073]
[1734513670561,0.14505435,104290.0,104280.0,0.36386575]
[1734513671056,0.09865094,104290.0,104280.0,0.36386575]
[1734513671359,0.14505435,104290.0,104280.0,0.36386575]
[1734513672461,0.23072694,104290.0,104280.0,0.36386575]
[1734513673661,0.23072694,104290.0,104280.0,0.36385853]
[1734513676462,0.34498891,104290.0,104280.0,0.00305853]
[1734513676655,0.047958,104280.0,104270.0,0.40720341]
[1734513676859,0.047958,104280.0,104270.0,0.41026577]
[1734513677758,0.047958,104280.0,104270.0,0.36386236]
[1734513678653,0.6529465,104290.0,104270.0,0.45822477]
[1734513678965,0.45852953,104290.0,104280.0,0.51866141]
[1734513679159,0.37285694,104290.0,104280.0,0.59972718]
[1734513679354,0.37285694,104290.0,104280.0,0.55332377]
[1734513679974,0.37235694,104290.0,104280.0,0.59666482]
[1734513680173,0.01799694,104290.0,104280.0,2.09974172]
[1734513680364,0.10366953,104290.0,104280.0,0.55333831]
[1734513680793,0.10366953,104290.0,104280.0,2.05333831]
[1734513680983,0.10416953,104290.0,104280.0,2.05333831]
[1734513681166,0.08626336,104290.0,104280.0,2.09974172]
[1734513681355,0.08626336,104290.0,104280.0,2.05333831]
[1734513681562,0.13421636,104290.0,104280.0,2.05333831]
[1734513681959,0.13371636,104290.0,104280.0,2.05333831]
[1734513682165,0.13371636,104290.0,104280.0,0.55333831]
[1734513682557,0.13371636,104290.0,104280.0,0.55026141]
[1734513682766,0.13371636,104290.0,104280.0,0.5533377]
[1734513682958,0.29488174,104290.0,104280.0,0.45897629]
[1734513683166,0.29488174,104290.0,104280.0,0.42737629]
[1734513683167,0.20920915,104290.0,104280.0,0.42737629]
[1734513683866,0.16280574,104290.0,104280.0,0.42737629]
[1734513684062,0.16230574,104290.0,104280.0,0.42737629]
[1734513684463,0.30560602,104290.0,104280.0,0.42737629]
[1734513684667,0.35200943,104290.0,104280.0,0.42737629]
[1734513684964,0.35250943,104290.0,104280.0,0.36387629]
[1734513685163,0.4102078,104290.0,104280.0,0.36387629]
[1734513685357,0.4406078,104290.0,104280.0,0.36387629]
[1734513685669,0.4406078,104290.0,104280.0,0.00307629]
[1734513685670,0.29730752,104290.0,104280.0,0.00307629]
[1734513686171,0.29680752,104290.0,104280.0,0.00307629]
[1734513686593,0.29680752,104290.0,104280.0,0.00307036]
[1734513686965,0.22000411,104290.0,104280.0,0.45516141]
[1734513687167,0.22000411,104290.0,104280.0,0.51986141]
[1734513687468,0.26640752,104290.0,104280.0,0.473458]
[1734513687665,0.17205111,104290.0,104280.0,0.51986141]
[1734513687857,0.22457149,104290.0,104280.0,0.55236141]
[1734513688171,0.17205111,104290.0,104280.0,2.07657558]
[1734513688360,0.31559904,104290.0,104280.0,2.07657558]
[1734513688560,0.1436387,104290.0,104280.0,2.07657558]
[1734513688860,0.1436387,104290.0,104280.0,2.07965075]
[1734513689057,0.25846989,104290.0,104280.0,2.07965075]
[1734513689366,0.31559904,104290.0,104280.0,2.25055666]
[1734513689559,0.1436387,104290.0,104280.0,2.25055666]
[1734513690273,0.1436387,104290.0,104280.0,2.2505684]
[1734513691354,0.1436387,104290.0,104280.0,2.17995082]
[1734513691564,0.1915917,104290.0,104280.0,2.17995082]
[1734513692265,0.1915917,104290.0,104280.0,0.67995082]
[1734513692858,0.1436387,104290.0,104280.0,2.2505684]
[1734513693060,0.25853887,104290.0,104280.0,2.2505684]
[1734513693359,0.25853887,104290.0,104280.0,2.47844194]
[1734513693560,0.20115121,104290.0,104280.0,2.49675851]
[1734513693772,0.20115121,104290.0,104280.0,2.61069578]
[1734513694470,0.20115121,104290.0,104280.0,2.49703627]
[1734513695164,0.20115121,104290.0,104280.0,2.3258526]
[1734513695478,0.20115121,104290.0,104280.0,2.49700405]
[1734513696492,0.08625104,104290.0,104280.0,2.49701088]
[1734513696965,0.08619448,104290.0,104280.0,2.49698235]
[1734513699672,0.08619448,104290.0,104280.0,2.49697871]
[1734513699877,0.08619448,104290.0,104280.0,2.86759629]
[1734513700063,0.21490017,104300.0,104290.0,0.11857058]
[1734513700264,0.21490017,104300.0,104290.0,0.65358259]
[1734513701074,0.21551401,104300.0,104290.0,0.65358259]
[1734513701274,0.10061384,104300.0,104290.0,0.88145714]
[1734513701576,0.10061384,104300.0,104290.0,2.21033422]
[1734513702300,0.10061384,104300.0,104290.0,2.38129984]
[1734513702469,0.10061384,104300.0,104290.0,2.38129748]
[1734513703768,0.14856184,104300.0,104290.0,2.38129748]
[1734513703980,0.14856184,104300.0,104290.0,0.8106799]
[1734513705082,0.14806184,104300.0,104290.0,0.8106799]
[1734513705475,0.14806184,104300.0,104290.0,0.80759317]
[1734513705665,0.14806184,104300.0,104290.0,0.81067764]
[1734513706173,0.14806184,104300.0,104290.0,0.63971202]
[1734513707073,0.14806184,104300.0,104290.0,0.81065289]
[1734513707878,0.14806184,104300.0,104290.0,0.63971202]
[1734513708379,0.14806184,104300.0,104290.0,0.81065407]
[1734513708782,0.14806184,104300.0,104290.0,0.81064145]
[1734513709088,0.10011384,104300.0,104290.0,0.81064145]
[1734513709771,0.14806184,104300.0,104290.0,0.81064145]
[1734513709975,0.14806184,104300.0,104290.0,0.85697681]
[1734513710290,0.14806184,104300.0,104290.0,0.68603476]
[1734513710865,0.14806184,104300.0,104290.0,0.85700012]
[1734513711275,0.14806184,104300.0,104290.0,0.68603476]
[1734513711582,0.14806184,104300.0,104290.0,0.85700079]
[1734513712371,0.14806184,104300.0,104290.0,0.85392894]
[1734513712670,0.14806184,104300.0,104290.0,0.85700308]
[1734513713275,0.14806184,104300.0,104290.0,1.21780308]
[1734513713875,0.10011384,104300.0,104290.0,1.21780308]
[1734513715679,0.10011384,104300.0,104290.0,1.04683705]
[1734513716885,0.10011384,104300.0,104290.0,1.33168023]
[1734513717690,0.10011384,104300.0,104290.0,1.53018547]
[1734513717876,0.10011384,104300.0,104290.0,1.30231092]
[1734513718077,0.10011384,104300.0,104290.0,1.25597556]
[1734513718575,0.10011384,104300.0,104290.0,1.59778738]
[1734513718778,0.10011384,104300.0,104290.0,1.25597556]
[1734513719083,0.10011384,104300.0,104290.0,2.75597556]
[1734513720203,0.10011384,104300.0,104290.0,2.75599446]
[1734513720795,0.10011384,104300.0,104290.0,2.75508088]
[1734513721489,0.10011384,104300.0,104290.0,3.0968927]
[1734513723273,0.10011384,104300.0,104290.0,3.05055734]
[1734513723477,0.10011384,104300.0,104290.0,3.0968927]
[1734513724078,0.10011384,104300.0,104290.0,3.09679722]
[1734513725485,0.10011384,104300.0,104290.0,3.14313258]
[1734513725715,0.11490017,104310.0,104290.0,2.8582894]
[1734513725919,0.11490017,104310.0,104300.0,0.81792972]
[1734513726084,0.11540017,104310.0,104300.0,1.00538358]
[1734513726385,0.11540017,104310.0,104300.0,0.85422276]
[1734513726784,0.11550841,104310.0,104300.0,0.85422276]
[1734513727290,0.11550841,104310.0,104300.0,2.35422276]
[1734513727488,0.11550841,104310.0,104300.0,0.99743267]
[1734513727804,0.11550841,104310.0,104300.0,0.99745942]
[1734513727994,0.11500841,104310.0,104300.0,2.49745942]
[1734513728183,0.11500841,104310.0,104300.0,2.72572224]
[1734513728383,0.11500841,104310.0,104300.0,2.49745942]
[1734513729987,0.11500841,104310.0,104300.0,2.47538894]
[1734513731809,0.11500841,104310.0,104300.0,2.49034699]
[1734513732526,0.00010824,104310.0,104300.0,2.49034699]
[1734513732694,0.00010824,104310.0,104300.0,2.75085122]
[1734513733002,0.00010824,104310.0,104300.0,2.37941033]
[1734513733189,0.00010824,104310.0,104300.0,2.72122215]
[1734513737202,0.00010824,104310.0,104300.0,2.44999189]
[1734513737496,0.12540017,104320.0,104310.0,0.047942]
[1734513737693,0.12540017,104320.0,104310.0,0.71050556]
[1734513737694,0.0105,104320.0,104310.0,0.71050556]
[1734513737888,0.0105,104320.0,104310.0,0.99591756]
[1734513738273,0.01,104320.0,104310.0,0.71050556]
[1734513738502,0.01008156,104320.0,104310.0,0.76784728]
[1734513739101,0.01058156,104320.0,104310.0,0.76784728]
[1734513741714,0.01058156,104320.0,104310.0,2.26784728]
[1734513742004,0.01058156,104320.0,104310.0,2.2678635]
[1734513742394,0.01058156,104320.0,104310.0,2.49570972]
[1734513743805,0.01058156,104320.0,104310.0,2.42512816]
[1734513744102,0.01058156,104320.0,104310.0,2.49570972]
[1734513744915,0.01058156,104320.0,104310.0,2.49571135]
[1734513745296,0.01058156,104320.0,104310.0,2.49571116]
[1734513745992,0.01058156,104320.0,104310.0,2.85651116]